{"text_format":"3","workbook":"xlsx","n_sheets":3,"sheets":["Overzicht","Een auto kopen","Autodelen"],"not_rendered":{"charts":1,"defined_names":33},"read":"whole","date_system":"1900"}

{"sheet":"Overzicht","index":0,"n_rows":16,"n_cols":4,"rows_kept":16}
[null,"Een auto kopen vs. autodelen"]
[null,"Reisgemiddelden"]
[null,"Gemiddeld aantal ritten per dag",2]
[null,"Gemiddelde tijd per rit",20,"minuten"]
[null,"Gemiddelde afstand per rit",{"v":10,"d":"10.00"},"kilometers"]
[null,"Jaarlijks aantal kilometers",{"$f":"IFERROR(GemiddeldAantalRittenPerDag*GemAfstandPerRit*365,\"\")","v":{"v":7300,"d":"7,300"}},"kilometers"]
[null,"Kosten van tijd"]
[null,"Tarief per uur",{"v":20,"d":"€ 20.00"}]
[null,"Overzicht jaarlijkse kosten"]
[" ","Kolom1","Een auto kopen","Autodelen"]
[null,"Aanschafkosten",{"$f":"JaarlijkseAanschafkosten","v":{"v":7187.314844765674,"d":"€ 7,187.31"}},"-"]
[null,"Gebruikskosten auto",{"$f":"JaarlijkseGebruikskosten","v":{"v":2990,"d":"€ 2,990.00"}},"-"]
[null,"Brandstofkosten",{"$f":"JaarlijkseBrandstofkosten","v":{"v":617.6923076923076,"d":"€ 617.69"}},"-"]
[null,"Ritbedrag","-",{"$f":"JaarlijkseRitkosten","v":{"v":12340.65,"d":"€ 12,340.65"}}]
[null,"Kosten van tijd",{"$f":"JaarlijkseKostenVanTijd_AutoKopen","v":{"v":7300,"d":"€ 7,300.00"}},{"$f":"JaarlijkseKostenVanTijd_Autodelen","v":{"v":2190,"d":"€ 2,190.00"}}]
[null,"Totale jaarlijkse kosten",{"$f":"SUBTOTAL(109,Tabel7[Een auto kopen])","v":{"v":18095.007152457983,"d":"€ 18,095.01"}},{"$f":"SUBTOTAL(109,Tabel7[Autodelen])","v":{"v":14530.65,"d":"€ 14,530.65"}}]

{"sheet":"Een auto kopen","index":1,"n_rows":28,"n_cols":4,"rows_kept":28}
[null,"Een auto kopen"]
[null,"Aanschafkosten"]
[]
[null,"Prijs van een auto",{"v":30000,"d":"€ 30,000.00"}]
[null,"Btw",{"v":0.0575,"d":"€ 0.06"}]
[null,"Aanschafkosten",{"v":220,"d":"€ 220.00"}]
[null,"Aanbetaling",{"v":3000,"d":"€ 3,000.00"},"maanden"]
[null,"Duur van lening",{"v":60,"d":"€ 60.00"}]
[null,"Rentepercentage",{"v":0.045,"d":"€ 0.05"}]
[null,"Jaarlijkse aanschafkosten",{"$f":"IFERROR(-PMT(Rentevoet,DuurLening/12,PrijsVanAuto*(1+Btw)-Aanbetaling)+(Aanschafkosten+Aanbetaling)/(DuurLening/12),\"\")","v":{"v":7187.314844765674,"d":"€ 7,187.31"}}]
[null,{"$f":"IF(JaarlijkseAanschafkosten=\"\",\"\",\"Voor een leningsduur van \" & TEXT(DuurLening/12,\"0,0\") & \" jaar\")","v":"Voor een leningsduur van 5,0 jaar"}]
[null,"Gebruikskosten auto"]
[null,"Onderhoud en reparaties",{"v":1000,"d":"€ 1,000.00"},"per jaar"]
[null,"Verzekering",{"v":815,"d":"€ 815.00"},"per jaar"]
[null,"Registratie en belasting",{"v":75,"d":"€ 75.00"},"per jaar"]
[null,"Parkeren",{"v":500,"d":"€ 500.00"},"per jaar"]
[null,"Onroerendgoedbelasting op garage",{"v":500,"d":"€ 500.00"},"per jaar"]
[null,"Andere onkosten voor garage",{"v":100,"d":"€ 100.00"},"per jaar"]
[null,"Jaarlijkse gebruikskosten",{"$f":"SUBTOTAL(109,Tabel3[Kolom3])","v":{"v":2990,"d":"€ 2,990.00"}}]
[null,"Brandstofkosten"]
[null,"Brandstofkosten",{"v":3.3,"d":"€ 3.30"},"per liter"]
[null,"Brandstofgebruik",39,"kilometer/liter"]
[null,"Jaarlijkse brandstofkosten",{"$f":"IFERROR(TotaalAantalKilometers/Brandstofverbruik*Brandstofkosten,\"\")","v":{"v":617.6923076923076,"d":"€ 617.69"}}]
[null,{"$f":"IF(JaarlijkseBrandstofkosten=\"\",\"\",\"Op basis van \" & TEXT(TotaalAantalKilometers,\"#.##0\") & \" kilometer per jaar\")","v":"Op basis van 7.300 kilometer per jaar"}]
[null,"Kosten van tijd"]
[null,"Gemiddelde parkeertijd",10,"minuten"]
[null,"Gemiddelde kosten van tijd",{"$f":"IFERROR((GemTijdPerRit+GemParkeertijd)*GemiddeldAantalRittenPerDag/60*TariefPerUur*365,\"\")","v":{"v":7300,"d":"€ 7,300.00"}}]
[null,{"$f":"IF(JaarlijkseKostenVanTijd_AutoKopen=\"\",\"\",\"Op basis van \" &GemiddeldAantalRittenPerDag & \" ritten per dag, \" &GemTijdPerRit + GemParkeertijd & \" minuten per rit en een tarief van \" & TEXT(TariefPerUur,\"€ #.##0,00\") & \" per uur\")","v":"Op basis van 2 ritten per dag, 30 minuten per rit en een tarief van € 20,00 per uur"}]

{"sheet":"Autodelen","index":2,"n_rows":14,"n_cols":4,"rows_kept":14}
[null,"Autodelen"]
[null,"Tarief autodelen"]
[null,"Basistarief",{"v":2.3,"d":"€ 2.30"},"per rit"]
[null,"Tarief afstand",{"v":1,"d":"€ 1.00"},"per kilometer"]
[null,"Tarief tijd",{"v":0.12,"d":"€ 0.12"},"per minuut"]
[null,"Gemiddelde vermenigvuldiging tijdens spits",{"v":2.5,"d":"2.50"}]
[null,"Percentage ritten tijdens spits",{"v":0.1,"d":"10%"}]
[null,"Jaarlijkse kosten",{"$f":"IFERROR((Basistarief+TariefAfstand*GemAfstandPerRit+TariefTijd*GemTijdPerRit)*GemiddeldAantalRittenPerDag*365*((1-PercentageRittenTijdensSpits)+GemVermenigvuldigingTijdensSpits*PercentageRittenTijdensSpits),\"\")","v":{"v":12340.65,"d":"€ 12,340.65"}}]
[null,{"$f":"IF(JaarlijkseRitkosten=\"\",\"\",\"Op basis van \" &GemiddeldAantalRittenPerDag & \" ritten per dag, \" &GemTijdPerRit & \" minuten en \" &GemAfstandPerRit & \" km per rit\")","v":"Op basis van 2 ritten per dag, 20 minuten en 10 km per rit"}]
[null,"Kosten van tijd"]
[null,"Gemiddelde wachttijd per rit",{"v":5,"d":"€ 5.00"},"minuten"]
[null,"Productieve tijd tijdens rit",{"v":0.8,"d":"€ 0.80"}]
[null,"Gemiddelde kosten van tijd",{"$f":"IFERROR((GemWachttijd+GemTijdPerRit*(1-ProductiviteitsPercentage))*GemiddeldAantalRittenPerDag/60*TariefPerUur*365,\"\")","v":{"v":2190,"d":"€ 2,190.00"}}]
[null,{"$f":"IF(JaarlijkseKostenVanTijd_Autodelen=\"\",\"\",\"Op basis van \" &GemiddeldAantalRittenPerDag & \" ritten per dag, \" &GemTijdPerRit & \" minuten per rit en een tarief van \" & TEXT(TariefPerUur,\"€ #.##0,00\") & \" per uur\")","v":"Op basis van 2 ritten per dag, 20 minuten per rit en een tarief van € 20,00 per uur"}]